[Event "Titled Tuesday Blitz August 08 Early 2023"]
[White "Fominykh, Maria"]
[Black "Willy, Stephen"]
[WhiteFideId "4142411"]
[BlackFideId "30981468"]
[WhiteElo "2289"]
[BlackElo "2507"]
[Result "1/2-1/2"]
[Round "9"]
[TimeControl "180+1"]
[Date "2023.08.08"]
[WhiteClock "0:00:04"]
[BlackClock "0:00:06"]
[Board "112"]

1. d4 {[%clk 0:03:00]}  d5 {[%clk 0:02:58]} 2. c4 {[%clk 0:03:00]}  g6 {[%clk 0:02:55]} 3. cxd5 {[%clk 0:03:00]}  Nf6 {[%clk 0:02:54]} 4. Nf3 {[%clk 0:02:55]}  Bg7 {[%clk 0:02:53]} 5. g3 {[%clk 0:02:38]}  Nxd5 {[%clk 0:02:46]} 6. Bg2 {[%clk 0:02:38]}  O-O {[%clk 0:02:44]} 7. O-O {[%clk 0:02:37]}  Nc6 {[%clk 0:02:39]} 8. e4 {[%clk 0:02:30]}  Nb6 {[%clk 0:02:38]} 9. d5 {[%clk 0:02:22]}  Ne5 {[%clk 0:02:38]} 10. Nxe5 {[%clk 0:02:19]}  Bxe5 {[%clk 0:02:39]} 11. Nc3 {[%clk 0:02:18]}  a5 {[%clk 0:02:33]} 12. Bh6 {[%clk 0:02:15]}  Bg7 {[%clk 0:02:27]} 13. Bxg7 {[%clk 0:02:10]}  Kxg7 {[%clk 0:02:27]} 14. Qd4+ {[%clk 0:02:06]}  f6 {[%clk 0:02:22]} 15. Rfd1 {[%clk 0:01:58]}  e5 {[%clk 0:02:11]} 16. dxe6 {[%clk 0:01:42]}  Qxd4 {[%clk 0:02:09]} 17. Rxd4 {[%clk 0:01:42]}  Bxe6 {[%clk 0:02:09]} 18. Nb5 {[%clk 0:01:34]}  Rad8 {[%clk 0:01:53]} 19. Nxc7 {[%clk 0:01:26]}  Bf7 {[%clk 0:01:44]} 20. Nd5 {[%clk 0:01:19]}  Nd7 {[%clk 0:01:35]} 21. Rc1 {[%clk 0:01:07]}  Rc8 {[%clk 0:01:32]} 22. Rdc4 {[%clk 0:00:59]}  Rxc4 {[%clk 0:01:22]} 23. Rxc4 {[%clk 0:01:00]}  Rd8 {[%clk 0:01:07]} 24. Rc7 {[%clk 0:00:57]}  b5 {[%clk 0:01:06]} 25. a3 {[%clk 0:00:53]}  Ne5 {[%clk 0:01:02]} 26. b4 {[%clk 0:00:49]}  axb4 {[%clk 0:00:59]} 27. axb4 {[%clk 0:00:49]}  Kf8 {[%clk 0:00:55]} 28. f4 {[%clk 0:00:34]}  Nc4 {[%clk 0:00:50]} 29. Kf2 {[%clk 0:00:22]}  f5 {[%clk 0:00:48]} 30. Rc5 {[%clk 0:00:18]}  fxe4 {[%clk 0:00:45]} 31. Bxe4 {[%clk 0:00:19]}  Nd6 {[%clk 0:00:42]} 32. Bg2 {[%clk 0:00:18]}  Ra8 {[%clk 0:00:40]} 33. Nc7 {[%clk 0:00:15]}  Ra2+ {[%clk 0:00:35]} 34. Kg1 {[%clk 0:00:16]}  Ra1+ {[%clk 0:00:33]} 35. Kf2 {[%clk 0:00:16]}  Ra2+ {[%clk 0:00:34]} 36. Kg1 {[%clk 0:00:14]}  Bc4 {[%clk 0:00:33]} 37. Bd5 {[%clk 0:00:13]}  Ra1+ {[%clk 0:00:33]} 38. Kg2 {[%clk 0:00:12]}  Nf5 {[%clk 0:00:29]} 39. Bxc4 {[%clk 0:00:11]}  bxc4 {[%clk 0:00:30]} 40. Ne6+ {[%clk 0:00:10]}  Ke7 {[%clk 0:00:30]} 41. Nd4 {[%clk 0:00:10]}  Nxd4 {[%clk 0:00:29]} 42. Rxc4 {[%clk 0:00:10]}  Ne6 {[%clk 0:00:27]} 43. b5 {[%clk 0:00:09]}  Kd6 {[%clk 0:00:27]} 44. Rc6+ {[%clk 0:00:08]}  Kd7 {[%clk 0:00:27]} 45. Rc2 {[%clk 0:00:07]}  Rb1 {[%clk 0:00:26]} 46. Rd2+ {[%clk 0:00:07]}  Ke7 {[%clk 0:00:25]} 47. Ra2 {[%clk 0:00:06]}  h5 {[%clk 0:00:22]} 48. Ra7+ {[%clk 0:00:06]}  Kf6 {[%clk 0:00:22]} 49. Rb7 {[%clk 0:00:05]}  Kf5 {[%clk 0:00:17]} 50. h3 {[%clk 0:00:05]}  Ke4 {[%clk 0:00:17]} 51. Re7 {[%clk 0:00:03]}  Kd5 {[%clk 0:00:16]} 52. Rd7+ {[%clk 0:00:04]}  Kc5 {[%clk 0:00:14]} 53. Re7 {[%clk 0:00:03]}  Nd4 {[%clk 0:00:14]} 54. Re5+ {[%clk 0:00:03]}  Kc4 {[%clk 0:00:14]} 55. g4 {[%clk 0:00:04]}  h4 {[%clk 0:00:14]} 56. f5 {[%clk 0:00:03]}  Rb2+ {[%clk 0:00:14]} 57. Kf1 {[%clk 0:00:03]}  gxf5 {[%clk 0:00:14]} 58. gxf5 {[%clk 0:00:03]}  Rxb5 {[%clk 0:00:14]} 59. Rxb5 {[%clk 0:00:03]}  Kxb5 {[%clk 0:00:14]} 60. f6 {[%clk 0:00:01]}  Kc5 {[%clk 0:00:13]} 61. f7 {[%clk 0:00:02]}  Ne6 {[%clk 0:00:14]} 62. Kf2 {[%clk 0:00:02]}  Kd6 {[%clk 0:00:14]} 63. Kf3 {[%clk 0:00:02]}  Ke7 {[%clk 0:00:09]} 64. Kg4 {[%clk 0:00:03]}  Kxf7 {[%clk 0:00:05]} 65. Kxh4 {[%clk 0:00:03]}  Kf6 {[%clk 0:00:06]} 66. Kg4 {[%clk 0:00:03]}  Ng7 {[%clk 0:00:07]} 67. h4 {[%clk 0:00:04]}  Kg6 {[%clk 0:00:07]} 68. h5+ {[%clk 0:00:04]}  Nxh5 {[%clk 0:00:06]} 1/2-1/2


[Site "https://www.chess.com"]

[Event "Titled Tuesday Blitz August 08 Early 2023"]
[White "Putri, Regita Desyari"]
[Black "Liu, Casper"]
[WhiteFideId "7109083"]
[BlackFideId "1454153"]
[WhiteElo "2185"]
[BlackElo "2500"]
[Result "0-1"]
[Round "9"]
[TimeControl "180+1"]
[Date "2023.08.08"]
[WhiteClock "0:00:29"]
[BlackClock "0:01:26"]
[Board "114"]

1. d4 {[%clk 0:02:56]}  Nf6 {[%clk 0:02:41]} 2. c4 {[%clk 0:02:54]}  g6 {[%clk 0:02:42]} 3. Nf3 {[%clk 0:02:54]}  Bg7 {[%clk 0:02:43]} 4. g3 {[%clk 0:02:54]}  O-O {[%clk 0:02:44]} 5. Bg2 {[%clk 0:02:53]}  b6 {[%clk 0:02:43]} 6. O-O {[%clk 0:02:53]}  Bb7 {[%clk 0:02:44]} 7. Nc3 {[%clk 0:02:53]}  e6 {[%clk 0:02:42]} 8. Qc2 {[%clk 0:02:45]}  c5 {[%clk 0:02:42]} 9. e4 {[%clk 0:02:42]}  cxd4 {[%clk 0:02:38]} 10. Nxd4 {[%clk 0:02:43]}  Nc6 {[%clk 0:02:39]} 11. Ndb5 {[%clk 0:02:40]}  Rc8 {[%clk 0:02:38]} 12. Nd6 {[%clk 0:02:39]}  Rc7 {[%clk 0:02:38]} 13. Nxb7 {[%clk 0:02:39]}  Rxb7 {[%clk 0:02:39]} 14. a3 {[%clk 0:02:31]}  Rc7 {[%clk 0:02:37]} 15. Bf4 {[%clk 0:02:30]}  Rc8 {[%clk 0:02:31]} 16. Rad1 {[%clk 0:02:27]}  e5 {[%clk 0:02:21]} 17. Bg5 {[%clk 0:02:25]}  Nd4 {[%clk 0:02:17]} 18. Qa4 {[%clk 0:02:25]}  Qc7 {[%clk 0:01:44]} 19. Bxf6 {[%clk 0:02:15]}  Bxf6 {[%clk 0:01:45]} 20. Nd5 {[%clk 0:02:15]}  Qc6 {[%clk 0:01:46]} 21. Qxc6 {[%clk 0:01:50]}  Rxc6 {[%clk 0:01:45]} 22. Rfe1 {[%clk 0:01:45]}  Kg7 {[%clk 0:01:26]} 23. Rc1 {[%clk 0:01:15]}  Rfc8 {[%clk 0:01:25]} 24. Ne3 {[%clk 0:00:38]}  Bg5 {[%clk 0:01:25]} 25. Red1 {[%clk 0:00:34]}  Bxe3 {[%clk 0:01:24]} 26. fxe3 {[%clk 0:00:34]}  Ne2+ {[%clk 0:01:24]} 27. Kf2 {[%clk 0:00:34]}  Nxc1 {[%clk 0:01:25]} 28. Rxc1 {[%clk 0:00:29]}  Rxc4 {[%clk 0:01:26]} 0-1


[Site "https://www.chess.com"]

[Event "Titled Tuesday Blitz August 08 Early 2023"]
[White "Yashmetov, Mikhail"]
[Black "Aepfler, Christian"]
[WhiteFideId "24198900"]
[BlackFideId "4628306"]
[WhiteElo "2494"]
[BlackElo "2134"]
[Result "1/2-1/2"]
[Round "9"]
[TimeControl "180+1"]
[Date "2023.08.08"]
[WhiteClock "0:00:05"]
[BlackClock "0:00:25"]
[Board "115"]

1. d4 {[%clk 0:03:00]}  d6 {[%clk 0:03:00]} 2. Nf3 {[%clk 0:02:59]}  Nf6 {[%clk 0:03:00]} 3. c4 {[%clk 0:02:59]}  c6 {[%clk 0:03:00]} 4. g3 {[%clk 0:02:59]}  Bg4 {[%clk 0:02:59]} 5. Bg2 {[%clk 0:02:59]}  Nbd7 {[%clk 0:03:00]} 6. Nc3 {[%clk 0:02:58]}  e5 {[%clk 0:03:00]} 7. O-O {[%clk 0:02:56]}  Be7 {[%clk 0:03:00]} 8. dxe5 {[%clk 0:02:43]}  Nxe5 {[%clk 0:02:52]} 9. Nxe5 {[%clk 0:02:37]}  dxe5 {[%clk 0:02:52]} 10. Qb3 {[%clk 0:02:37]}  Qb6 {[%clk 0:02:52]} 11. Be3 {[%clk 0:02:29]}  Qc7 {[%clk 0:02:45]} 12. h3 {[%clk 0:02:22]}  Be6 {[%clk 0:02:44]} 13. Rfd1 {[%clk 0:02:12]}  O-O {[%clk 0:02:44]} 14. Qa4 {[%clk 0:02:07]}  a6 {[%clk 0:02:34]} 15. c5 {[%clk 0:02:02]}  Rfd8 {[%clk 0:02:28]} 16. Rxd8+ {[%clk 0:01:39]}  Rxd8 {[%clk 0:02:27]} 17. Rd1 {[%clk 0:01:40]}  Rxd1+ {[%clk 0:02:19]} 18. Qxd1 {[%clk 0:01:41]}  Qd7 {[%clk 0:02:15]} 19. Qxd7 {[%clk 0:01:37]}  Nxd7 {[%clk 0:02:14]} 20. b4 {[%clk 0:01:36]}  a5 {[%clk 0:02:13]} 21. a3 {[%clk 0:01:36]}  axb4 {[%clk 0:02:14]} 22. axb4 {[%clk 0:01:37]}  f5 {[%clk 0:02:12]} 23. f4 {[%clk 0:01:27]}  e4 {[%clk 0:02:08]} 24. Bd4 {[%clk 0:01:16]}  Bf6 {[%clk 0:02:08]} 25. e3 {[%clk 0:01:11]}  b6 {[%clk 0:01:51]} 26. Bf1 {[%clk 0:01:00]}  bxc5 {[%clk 0:01:49]} 27. bxc5 {[%clk 0:00:56]}  Nxc5 {[%clk 0:01:49]} 28. Bxf6 {[%clk 0:00:51]}  gxf6 {[%clk 0:01:49]} 29. Kf2 {[%clk 0:00:46]}  Kf7 {[%clk 0:01:49]} 30. Ke1 {[%clk 0:00:46]}  Ke7 {[%clk 0:01:49]} 31. Kd2 {[%clk 0:00:47]}  Kd6 {[%clk 0:01:49]} 32. Kc2 {[%clk 0:00:47]}  Bb3+ {[%clk 0:01:48]} 33. Kb2 {[%clk 0:00:47]}  Be6 {[%clk 0:01:47]} 34. Ka3 {[%clk 0:00:47]}  Nd3 {[%clk 0:01:43]} 35. Bxd3 {[%clk 0:00:41]}  exd3 {[%clk 0:01:43]} 36. Kb2 {[%clk 0:00:42]}  Kc5 {[%clk 0:01:38]} 37. Kc1 {[%clk 0:00:42]}  h5 {[%clk 0:01:20]} 38. Kd2 {[%clk 0:00:41]}  Kc4 {[%clk 0:01:19]} 39. Nd1 {[%clk 0:00:38]}  Bd5 {[%clk 0:00:58]} 40. Nb2+ {[%clk 0:00:36]}  Kc5 {[%clk 0:00:54]} 41. Nxd3+ {[%clk 0:00:37]}  Kd6 {[%clk 0:00:54]} 42. Ne1 {[%clk 0:00:33]}  Be4 {[%clk 0:00:53]} 43. Kc3 {[%clk 0:00:33]}  Kd5 {[%clk 0:00:50]} 44. Kb3 {[%clk 0:00:20]}  Kc5 {[%clk 0:00:35]} 45. Kc3 {[%clk 0:00:20]}  Kb5 {[%clk 0:00:35]} 46. Kd4 {[%clk 0:00:19]}  c5+ {[%clk 0:00:36]} 47. Kc3 {[%clk 0:00:17]}  Kb6 {[%clk 0:00:36]} 48. Nd3 {[%clk 0:00:07]}  Bxd3 {[%clk 0:00:36]} 49. Kxd3 {[%clk 0:00:08]}  Kc6 {[%clk 0:00:35]} 50. e4 {[%clk 0:00:07]}  fxe4+ {[%clk 0:00:30]} 51. Kxe4 {[%clk 0:00:08]}  Kd6 {[%clk 0:00:27]} 52. g4 {[%clk 0:00:08]}  hxg4 {[%clk 0:00:26]} 53. hxg4 {[%clk 0:00:08]}  Ke6 {[%clk 0:00:26]} 54. Ke3 {[%clk 0:00:04]}  Kd6 {[%clk 0:00:24]} 55. Kd3 {[%clk 0:00:04]}  Kd5 {[%clk 0:00:24]} 56. Ke3 {[%clk 0:00:02]}  c4 {[%clk 0:00:25]} 57. Kd2 {[%clk 0:00:01]}  Ke4 {[%clk 0:00:25]} 58. g5 {[%clk 0:00:02]}  fxg5 {[%clk 0:00:24]} 59. fxg5 {[%clk 0:00:03]}  Kf5 {[%clk 0:00:25]} 60. Kc3 {[%clk 0:00:04]}  Kxg5 {[%clk 0:00:25]} 61. Kxc4 {[%clk 0:00:05]} 1/2-1/2


[Site "https://www.chess.com"]

[Event "Titled Tuesday Blitz August 08 Early 2023"]
[White "Legenia, Artem"]
[Black "NovoselovRoman"]
[WhiteFideId "14136945"]
[WhiteElo "2399"]
[BlackElo "2601"]
[Result "1/2-1/2"]
[Round "9"]
[TimeControl "180+1"]
[Date "2023.08.08"]
[WhiteClock "0:00:19"]
[BlackClock "0:00:04"]
[Board "119"]

1. e4 {[%clk 0:02:52]}  d5 {[%clk 0:02:59]} 2. exd5 {[%clk 0:02:48]}  Qxd5 {[%clk 0:03:00]} 3. Qf3 {[%clk 0:02:49]}  Qd6 {[%clk 0:02:57]} 4. Bc4 {[%clk 0:02:48]}  Nf6 {[%clk 0:02:57]} 5. h3 {[%clk 0:02:47]}  Nc6 {[%clk 0:02:56]} 6. Ne2 {[%clk 0:02:47]}  Ne5 {[%clk 0:02:46]} 7. Qb3 {[%clk 0:02:48]}  Nxc4 {[%clk 0:02:45]} 8. Qxc4 {[%clk 0:02:48]}  c6 {[%clk 0:02:39]} 9. Nbc3 {[%clk 0:02:44]}  Bf5 {[%clk 0:02:36]} 10. d3 {[%clk 0:02:43]}  e6 {[%clk 0:02:36]} 11. Bf4 {[%clk 0:02:41]}  Qd8 {[%clk 0:02:36]} 12. Qb3 {[%clk 0:02:39]}  Qd7 {[%clk 0:02:13]} 13. g4 {[%clk 0:02:38]}  Bg6 {[%clk 0:02:13]} 14. O-O-O {[%clk 0:02:38]}  Be7 {[%clk 0:02:03]} 15. Ng3 {[%clk 0:02:23]}  b5 {[%clk 0:01:39]} 16. a4 {[%clk 0:02:19]}  b4 {[%clk 0:01:11]} 17. Nce4 {[%clk 0:02:16]}  Nd5 {[%clk 0:01:10]} 18. Bd2 {[%clk 0:02:12]}  f5 {[%clk 0:00:59]} 19. gxf5 {[%clk 0:02:09]}  exf5 {[%clk 0:01:00]} 20. Rhe1 {[%clk 0:01:56]}  fxe4 {[%clk 0:00:27]} 21. dxe4 {[%clk 0:01:55]}  Nf6 {[%clk 0:00:20]} 22. e5 {[%clk 0:01:45]}  Nd5 {[%clk 0:00:18]} 23. f4 {[%clk 0:01:24]}  Qxh3 {[%clk 0:00:15]} 24. Rg1 {[%clk 0:01:13]}  Qe6 {[%clk 0:00:10]} 25. f5 {[%clk 0:01:11]}  Bxf5 {[%clk 0:00:10]} 26. Nxf5 {[%clk 0:01:11]}  Qxf5 {[%clk 0:00:11]} 27. Rdf1 {[%clk 0:01:09]}  Qe6 {[%clk 0:00:10]} 28. Rxg7 {[%clk 0:01:09]}  O-O-O {[%clk 0:00:10]} 29. Kb1 {[%clk 0:01:02]}  Qxe5 {[%clk 0:00:07]} 30. Rff7 {[%clk 0:00:58]}  Rhf8 {[%clk 0:00:07]} 31. Rxf8 {[%clk 0:00:57]}  Rxf8 {[%clk 0:00:07]} 32. Rxh7 {[%clk 0:00:56]}  Qe2 {[%clk 0:00:04]} 33. Qh3+ {[%clk 0:00:52]}  Kb8 {[%clk 0:00:02]} 34. Bh6 {[%clk 0:00:51]}  Rf1+ {[%clk 0:00:02]} 35. Ka2 {[%clk 0:00:51]}  Qd1 {[%clk 0:00:02]} 36. Rh8+ {[%clk 0:00:48]}  Kb7 {[%clk 0:00:02]} 37. Qc8+ {[%clk 0:00:48]}  Kb6 {[%clk 0:00:03]} 38. Qb8+ {[%clk 0:00:48]}  Kc5 {[%clk 0:00:03]} 39. Qxa7+ {[%clk 0:00:47]}  Kd6 {[%clk 0:00:04]} 40. Be3 {[%clk 0:00:30]}  Qb1+ {[%clk 0:00:03]} 41. Kb3 {[%clk 0:00:29]}  Rf3 {[%clk 0:00:02]} 42. Qc5+ {[%clk 0:00:27]}  Kd7 {[%clk 0:00:02]} 43. Qa7+ {[%clk 0:00:27]}  Nc7 {[%clk 0:00:02]} 44. Rh7 {[%clk 0:00:24]}  Qe1 {[%clk 0:00:01]} 45. Rxe7+ {[%clk 0:00:20]}  Kxe7 {[%clk 0:00:02]} 46. Qxc7+ {[%clk 0:00:21]}  Kf8 {[%clk 0:00:02]} 47. Qd6+ {[%clk 0:00:20]}  Kg7 {[%clk 0:00:01]} 48. Qd7+ {[%clk 0:00:21]}  Rf7 {[%clk 0:00:02]} 49. Qg4+ {[%clk 0:00:21]}  Kh7 {[%clk 0:00:01]} 50. Qh5+ {[%clk 0:00:21]}  Kg8 {[%clk 0:00:02]} 51. Qg6+ {[%clk 0:00:21]}  Rg7 {[%clk 0:00:02]} 52. Qe8+ {[%clk 0:00:21]}  Kh7 {[%clk 0:00:03]} 53. Qh5+ {[%clk 0:00:21]}  Kg8 {[%clk 0:00:03]} 54. Qe5 {[%clk 0:00:20]}  Qg3 {[%clk 0:00:02]} 55. Qe8+ {[%clk 0:00:19]}  Kh7 {[%clk 0:00:02]} 56. Qh5+ {[%clk 0:00:20]}  Kg8 {[%clk 0:00:03]} 57. Qe8+ {[%clk 0:00:20]}  Kh7 {[%clk 0:00:03]} 58. Qh5+ {[%clk 0:00:19]}  Kg8 {[%clk 0:00:04]} 59. Qe8+ {[%clk 0:00:19]} 1/2-1/2


[Site "https://www.chess.com"]

[Event "Titled Tuesday Blitz August 08 Early 2023"]
[White "Rakhimgaliyev, Yerlan"]
[Black "Prokofiev, Valentyn"]
[WhiteFideId "13705148"]
[BlackFideId "14160161"]
[WhiteElo "2394"]
[BlackElo "2564"]
[Result "0-1"]
[Round "9"]
[TimeControl "180+1"]
[Date "2023.08.08"]
[WhiteClock "0:00:06"]
[BlackClock "0:00:08"]
[Board "120"]

1. e4 {[%clk 0:03:00]}  c5 {[%clk 0:02:56]} 2. Nc3 {[%clk 0:02:59]}  Nc6 {[%clk 0:02:55]} 3. f4 {[%clk 0:02:59]}  d6 {[%clk 0:02:54]} 4. Nf3 {[%clk 0:02:55]}  g6 {[%clk 0:02:55]} 5. Bc4 {[%clk 0:02:48]}  Bg7 {[%clk 0:02:55]} 6. O-O {[%clk 0:02:44]}  e6 {[%clk 0:02:56]} 7. d3 {[%clk 0:02:42]}  Nge7 {[%clk 0:02:55]} 8. a3 {[%clk 0:02:41]}  O-O {[%clk 0:02:55]} 9. Qe1 {[%clk 0:02:41]}  d5 {[%clk 0:02:44]} 10. Ba2 {[%clk 0:02:40]}  Nd4 {[%clk 0:02:38]} 11. Qf2 {[%clk 0:02:31]}  Nxf3+ {[%clk 0:02:23]} 12. Qxf3 {[%clk 0:02:26]}  Bd4+ {[%clk 0:02:24]} 13. Kh1 {[%clk 0:02:26]}  b6 {[%clk 0:02:04]} 14. f5 {[%clk 0:02:24]}  gxf5 {[%clk 0:01:54]} 15. Bh6 {[%clk 0:02:22]}  Re8 {[%clk 0:01:41]} 16. exd5 {[%clk 0:02:15]}  Bb7 {[%clk 0:01:28]} 17. dxe6 {[%clk 0:01:16]}  Bxf3 {[%clk 0:01:22]} 18. exf7+ {[%clk 0:01:16]}  Kh8 {[%clk 0:01:23]} 19. fxe8=Q+ {[%clk 0:01:16]}  Qxe8 {[%clk 0:01:24]} 20. Rxf3 {[%clk 0:01:16]}  Qg6 {[%clk 0:01:14]} 21. Bf4 {[%clk 0:01:16]}  Re8 {[%clk 0:01:13]} 22. Raf1 {[%clk 0:01:03]}  Qf6 {[%clk 0:00:57]} 23. Bd2 {[%clk 0:00:51]}  Rf8 {[%clk 0:00:52]} 24. Re1 {[%clk 0:00:43]}  Ng6 {[%clk 0:00:41]} 25. Nd5 {[%clk 0:00:37]}  Qd6 {[%clk 0:00:37]} 26. c3 {[%clk 0:00:35]}  Be5 {[%clk 0:00:29]} 27. d4 {[%clk 0:00:36]}  cxd4 {[%clk 0:00:28]} 28. cxd4 {[%clk 0:00:36]}  Bxd4 {[%clk 0:00:25]} 29. Bb4 {[%clk 0:00:37]}  Qd8 {[%clk 0:00:13]} 30. Rd1 {[%clk 0:00:36]}  Bxb2 {[%clk 0:00:09]} 31. Nc3 {[%clk 0:00:21]}  Qc8 {[%clk 0:00:04]} 32. Rb1 {[%clk 0:00:19]}  Ne5 {[%clk 0:00:02]} 33. Rxb2 {[%clk 0:00:16]}  Nxf3 {[%clk 0:00:03]} 34. gxf3 {[%clk 0:00:17]}  Kg7 {[%clk 0:00:03]} 35. Nd5 {[%clk 0:00:17]}  Kh6 {[%clk 0:00:03]} 36. Bd2+ {[%clk 0:00:17]}  Kh5 {[%clk 0:00:03]} 37. Nf4+ {[%clk 0:00:17]}  Kh4 {[%clk 0:00:04]} 38. Kg2 {[%clk 0:00:17]}  Rg8+ {[%clk 0:00:04]} 39. Kf2 {[%clk 0:00:18]}  Qc5+ {[%clk 0:00:03]} 40. Be3 {[%clk 0:00:19]}  Qc3 {[%clk 0:00:04]} 41. Rd2 {[%clk 0:00:18]}  Re8 {[%clk 0:00:04]} 42. Ng2+ {[%clk 0:00:17]}  Kh3 {[%clk 0:00:04]} 43. Bf7 {[%clk 0:00:17]}  Rxe3 {[%clk 0:00:03]} 44. Nf4+ {[%clk 0:00:05]}  Kxh2 {[%clk 0:00:03]} 45. Ng2 {[%clk 0:00:06]}  Rxf3+ {[%clk 0:00:03]} 46. Ke2 {[%clk 0:00:06]}  Rf2+ {[%clk 0:00:03]} 47. Kxf2 {[%clk 0:00:06]}  Qxd2+ {[%clk 0:00:04]} 48. Kf3 {[%clk 0:00:07]}  Qxg2+ {[%clk 0:00:05]} 49. Kf4 {[%clk 0:00:08]}  Qg3+ {[%clk 0:00:06]} 50. Kxf5 {[%clk 0:00:08]}  Qxa3 {[%clk 0:00:07]} 51. Ke6 {[%clk 0:00:06]}  Qc5 {[%clk 0:00:08]} 0-1


[Site "https://www.chess.com"]

[Event "Titled Tuesday Blitz August 08 Early 2023"]
[White "Souleidis, Georgios"]
[Black "EsmeraldasAnderson03"]
[WhiteFideId "4206827"]
[WhiteElo "2535"]
[BlackElo "2389"]
[Result "1-0"]
[Round "9"]
[TimeControl "180+1"]
[Date "2023.08.08"]
[WhiteClock "0:00:04"]
[BlackClock "0:00:44"]
[Board "121"]

1. e4 {[%clk 0:02:54]}  c5 {[%clk 0:02:12]} 2. Be2 {[%clk 0:02:52]}  d6 {[%clk 0:02:10]} 3. d3 {[%clk 0:02:53]}  g6 {[%clk 0:02:09]} 4. f4 {[%clk 0:02:54]}  Bg7 {[%clk 0:02:10]} 5. Nf3 {[%clk 0:02:55]}  e6 {[%clk 0:02:10]} 6. O-O {[%clk 0:02:55]}  Ne7 {[%clk 0:02:10]} 7. c3 {[%clk 0:02:56]}  O-O {[%clk 0:02:11]} 8. Be3 {[%clk 0:02:56]}  b5 {[%clk 0:02:12]} 9. a3 {[%clk 0:02:55]}  Bb7 {[%clk 0:02:11]} 10. d4 {[%clk 0:02:55]}  cxd4 {[%clk 0:02:08]} 11. Bxd4 {[%clk 0:02:56]}  Bxe4 {[%clk 0:02:08]} 12. Bxg7 {[%clk 0:02:55]}  Kxg7 {[%clk 0:02:09]} 13. Qd4+ {[%clk 0:02:55]}  Kg8 {[%clk 0:01:50]} 14. Qxe4 {[%clk 0:02:54]}  d5 {[%clk 0:01:50]} 15. Qe5 {[%clk 0:02:41]}  Nbc6 {[%clk 0:01:49]} 16. Qg5 {[%clk 0:02:40]}  Qb6+ {[%clk 0:01:46]} 17. Kh1 {[%clk 0:02:40]}  Nf5 {[%clk 0:01:47]} 18. Nbd2 {[%clk 0:02:33]}  a5 {[%clk 0:01:45]} 19. Bd3 {[%clk 0:02:30]}  Ne3 {[%clk 0:01:41]} 20. Qh6 {[%clk 0:02:20]}  Ng4 {[%clk 0:01:34]} 21. Qh4 {[%clk 0:02:20]}  h5 {[%clk 0:01:32]} 22. h3 {[%clk 0:02:12]}  Ne3 {[%clk 0:01:31]} 23. Rfe1 {[%clk 0:02:10]}  b4 {[%clk 0:01:30]} 24. Qf2 {[%clk 0:01:54]}  d4 {[%clk 0:01:30]} 25. Nxd4 {[%clk 0:01:47]}  Nd5 {[%clk 0:01:30]} 26. axb4 {[%clk 0:01:35]}  axb4 {[%clk 0:01:28]} 27. f5 {[%clk 0:00:39]}  bxc3 {[%clk 0:01:25]} 28. bxc3 {[%clk 0:00:35]}  Nxc3 {[%clk 0:01:22]} 29. Rxa8 {[%clk 0:00:33]}  Rxa8 {[%clk 0:01:22]} 30. fxg6 {[%clk 0:00:33]}  f5 {[%clk 0:01:11]} 31. N2f3 {[%clk 0:00:25]}  e5 {[%clk 0:01:08]} 32. Qh4 {[%clk 0:00:07]}  Nxd4 {[%clk 0:00:51]} 33. Qxh5 {[%clk 0:00:06]}  Qc7 {[%clk 0:00:52]} 34. Nxe5 {[%clk 0:00:05]}  Qxe5 {[%clk 0:00:52]} 35. Rxe5 {[%clk 0:00:04]}  Ra1+ {[%clk 0:00:49]} 36. Kh2 {[%clk 0:00:04]}  Ra6 {[%clk 0:00:44]} 37. Qh7+ {[%clk 0:00:04]} 1-0


[Site "https://www.chess.com"]